bitfinex/quotes_BTCUSD_20250826
["timestamp","ask_amount","ask_price","bid_price","bid_amount"]
[1756194525196,0.00047687,110480.0,110470.0,0.43879664]
[1756194525424,0.00047687,110480.0,110470.0,1.04025414]
[1756194527466,0.00047687,110480.0,110470.0,1.08185373]
[1756194528996,0.00047687,110480.0,110470.0,0.48035623]
[1756194529213,0.00047687,110480.0,110470.0,1.08185373]
[1756194529936,0.02721,110510.0,110500.0,0.78249297]
[1756194530172,0.02733952,110510.0,110500.0,1.03311499]
[1756194530370,0.00012952,110510.0,110500.0,1.03816499]
[1756194531293,0.00012952,110510.0,110500.0,0.43666749]
[1756194531508,0.00012952,110510.0,110500.0,1.03816499]
[1756194531914,0.00012952,110510.0,110500.0,1.04116499]
[1756194532337,0.00012952,110510.0,110500.0,1.0501831]
[1756194532526,0.00012952,110510.0,110500.0,1.04116499]
[1756194532988,0.00012952,110510.0,110500.0,1.04316499]
[1756194534013,0.00012952,110510.0,110500.0,1.0520997]
[1756194534428,0.00012952,110510.0,110500.0,0.51122749]
[1756194534641,0.00012952,110510.0,110500.0,0.35210749]
[1756194534807,0.00012952,110510.0,110500.0,0.51122749]
[1756194535026,0.00012952,110510.0,110500.0,1.11272499]
[1756194535253,0.00012952,110510.0,110500.0,0.51122749]
[1756194536007,0.00210952,110510.0,110500.0,0.55184948]
[1756194536683,0.78458611,110510.0,110500.0,0.09646202]
[1756194536901,0.78458611,110510.0,110500.0,0.16412]
[1756194537116,0.18308861,110510.0,110500.0,0.34511547]
[1756194537328,0.18308861,110510.0,110500.0,0.34724547]
[1756194537542,0.00012952,110510.0,110500.0,0.35043547]
[1756194537769,0.00012952,110510.0,110500.0,0.44189749]
[1756194538374,0.00211952,110510.0,110500.0,0.44189749]
[1756194538819,0.00012952,110510.0,110500.0,0.44189749]
[1756194539246,0.00012952,110510.0,110500.0,0.44185749]
[1756194540589,0.00012952,110510.0,110500.0,1.04335499]
[1756194542546,0.00012952,110510.0,110500.0,1.06080401]
[1756194542747,0.00012952,110510.0,110500.0,1.08800301]
[1756194543843,0.00012952,110510.0,110500.0,1.42800301]
[1756194544100,0.00012952,110510.0,110500.0,1.62800301]
[1756194544739,0.00012952,110510.0,110500.0,1.46392301]
[1756194544950,0.00012952,110510.0,110500.0,1.62300301]
[1756194545157,0.00012952,110510.0,110500.0,2.02800301]
[1756194545998,0.00012952,110510.0,110500.0,1.42950551]
[1756194546219,0.00012952,110510.0,110500.0,1.63100301]
[1756194546657,0.00012952,110510.0,110500.0,2.03100301]
[1756194546986,0.0002,110540.0,110530.0,0.18094634]
[1756194547181,0.00028629,110540.0,110530.0,0.43357836]
[1756194547540,0.00028629,110540.0,110530.0,0.43676836]
[1756194548417,0.00228629,110540.0,110530.0,0.43676836]
[1756194549584,0.00426629,110540.0,110530.0,0.27772836]
[1756194549786,0.00426629,110540.0,110530.0,0.43676836]
[1756194549994,0.00228629,110540.0,110530.0,0.43676836]
[1756194550829,0.00228629,110540.0,110530.0,0.47668637]
[1756194551066,0.00426629,110540.0,110530.0,0.31445637]
[1756194551284,0.00228629,110540.0,110530.0,0.47664637]
[1756194551915,0.00426629,110540.0,110530.0,0.47345637]
[1756194552115,0.00426629,110540.0,110530.0,0.47664637]
[1756194553868,0.00228629,110540.0,110530.0,0.47664637]
[1756194554750,0.00427629,110540.0,110530.0,0.47664637]
[1756194555190,0.00228629,110540.0,110530.0,0.47664637]
[1756194556685,0.00228629,110540.0,110530.0,0.48559598]
[1756194557289,0.01073872,110540.0,110530.0,1.08709348]
[1756194557716,0.00228629,110540.0,110530.0,1.08709348]
[1756194558216,0.00228629,110540.0,110530.0,1.2545425]
[1756194558653,0.00028629,110540.0,110530.0,1.2817355]
[1756194559098,0.00028629,110540.0,110530.0,1.2857355]
[1756194559348,0.00028629,110540.0,110530.0,0.684238]
[1756194559555,0.00028629,110540.0,110530.0,1.2857355]
[1756194562671,0.00874024,110540.0,110530.0,1.2857355]
[1756194562911,0.00874024,110540.0,110530.0,0.51678898]
[1756194563144,0.25417844,110570.0,110550.0,0.18091361]
[1756194563145,0.25418242,110570.0,110550.0,0.18091361]
[1756194563370,0.87515773,110570.0,110560.0,0.15896]
[1756194564500,0.27566023,110570.0,110560.0,0.33985725]
[1756194564705,0.87715773,110570.0,110560.0,0.33985725]
[1756194564901,0.87715773,110570.0,110560.0,0.15896]
[1756194565648,0.02147781,110570.0,110560.0,0.33985725]
[1756194565868,0.62297531,110570.0,110560.0,0.34280725]
[1756194566736,0.80385619,110570.0,110560.0,0.33985725]
[1756194566967,0.18089725,110560.0,110550.0,0.25042202]
[1756194567196,0.78239475,110560.0,110550.0,0.43133563]
[1756194568492,0.20039264,110560.0,110550.0,0.43133563]
[1756194568880,0.80189014,110560.0,110550.0,0.43133563]
[1756194571238,0.80189014,110560.0,110550.0,0.43428563]
[1756194571447,0.20039264,110560.0,110550.0,0.43133563]
[1756194571754,0.80189014,110560.0,110550.0,0.25042202]
[1756194571956,0.80189014,110560.0,110550.0,0.43133563]
[1756194573447,0.80189014,110560.0,110550.0,0.43428563]
[1756194574119,0.01949539,110560.0,110550.0,0.43641563]
[1756194575266,0.02797147,110560.0,110550.0,0.43641563]
[1756194576744,0.81036622,110560.0,110550.0,0.43133563]
[1756194577160,0.81036622,110560.0,110550.0,0.43428563]
[1756194577488,0.62946897,110560.0,110550.0,0.43641563]
[1756194577883,0.02797147,110560.0,110550.0,0.43641563]
[1756194578632,0.81036622,110560.0,110550.0,0.43133563]
[1756194578844,0.81036973,110560.0,110550.0,0.43133563]
[1756194579270,0.81036973,110560.0,110550.0,0.43428563]
[1756194579730,0.81036973,110560.0,110540.0,0.18092046]
[1756194579944,0.6014975,110550.0,110540.0,0.43425248]
[1756194580160,0.78239475,110560.0,110550.0,0.18091361]
[1756194580368,0.81041619,110560.0,110550.0,0.18386361]
[1756194581274,0.81041619,110560.0,110550.0,0.00295]
[1756194581487,0.18091361,110550.0,110540.0,0.43525248]
[1756194581700,0.60997876,110550.0,110540.0,0.43425248]
[1756194581878,0.00848126,110550.0,110540.0,0.43638248]
[1756194582097,0.00848241,110550.0,110540.0,0.43638248]
[1756194582321,0.60997991,110550.0,110540.0,0.43638248]
[1756194583183,0.79089352,110550.0,110540.0,0.43425248]
[1756194583436,0.79089352,110550.0,110540.0,0.43638248]
[1756194583670,0.79089352,110550.0,110540.0,0.25138202]
[1756194583900,0.79089352,110550.0,110540.0,0.15992]
[1756194584325,0.5837996,110550.0,110540.0,0.15992]
[1756194584543,0.92363321,110550.0,110540.0,0.002]
[1756194584801,0.9495461,110550.0,110540.0,0.002]
[1756194585007,0.9767461,110550.0,110540.0,0.001]
[1756194585439,0.9703824,110550.0,110540.0,0.001]
[1756194586587,0.9703824,110550.0,110520.0,0.26254608]
[1756194586588,0.18094634,110530.0,110520.0,0.0696]
[1756194586825,0.18094634,110530.0,110520.0,8.629e-05]
[1756194587049,0.78244384,110530.0,110520.0,0.18104901]
[1756194587267,0.94136384,110530.0,110520.0,0.18612901]
[1756194587736,0.18094469,110540.0,110520.0,0.18612901]
[1756194587967,0.6014975,110530.0,110520.0,0.18612901]
[1756194588210,0.78244384,110530.0,110520.0,0.18612901]
[1756194588455,0.78244384,110530.0,110520.0,0.34504901]
[1756194588921,0.78244384,110530.0,110520.0,0.00108629]
[1756194590461,0.78244384,110530.0,110520.0,0.00208629]
[1756194591098,0.79136045,110530.0,110520.0,0.00208629]
[1756194593070,0.18986295,110530.0,110520.0,0.00503629]
[1756194593249,0.79136045,110530.0,110520.0,0.00503629]
[1756194595206,0.79136045,110530.0,110520.0,0.00716629]
[1756194595413,0.18986295,110530.0,110520.0,0.00716629]
[1756194595628,0.79136045,110530.0,110520.0,0.00616629]
[1756194596022,0.95028045,110530.0,110520.0,0.18712901]
[1756194596257,0.95028045,110530.0,110520.0,0.00616629]
[1756194596680,0.77632532,110530.0,110520.0,0.18612901]
[1756194597301,0.77632532,110530.0,110520.0,0.00516629]
[1756194597627,0.77632532,110530.0,110520.0,0.18612901]
[1756194598826,0.77632532,110530.0,110520.0,0.00516629]
[1756194600399,0.77632532,110530.0,110520.0,0.18612901]
[1756194600817,0.17482782,110530.0,110520.0,0.18612901]
[1756194601472,0.78561998,110530.0,110520.0,8.629e-05]
[1756194601696,0.77632532,110530.0,110520.0,0.18610901]
[1756194602311,0.77632532,110530.0,110520.0,0.00514629]
[1756194602545,0.77632532,110530.0,110520.0,0.18610901]
[1756194603212,0.96856619,110540.0,110530.0,0.18094634]
[1756194603417,0.94136219,110540.0,110530.0,0.18307634]
[1756194603639,0.96856519,110540.0,110530.0,0.00506]
[1756194603861,0.94136219,110540.0,110530.0,0.00293]
[1756194604066,0.96856519,110540.0,110530.0,0.18600634]
[1756194604456,0.97056519,110540.0,110530.0,0.18600634]
[1756194605213,0.97985611,110540.0,110530.0,0.18600634]
[1756194606215,0.97985611,110540.0,110530.0,0.00506]
[1756194606432,0.97985611,110540.0,110530.0,0.18600634]
[1756194607233,0.34184998,110540.0,110530.0,0.18600634]
[1756194607462,0.94334748,110540.0,110530.0,0.18600634]
[1756194607658,0.7624175,110540.0,110530.0,0.18600634]
[1756194607983,0.002,110540.0,110530.0,0.34492634]
[1756194608329,0.002,110540.0,110530.0,0.43638836]
[1756194609756,0.98650819,110550.0,110540.0,0.18092998]
[1756194609950,0.22551578,110550.0,110540.0,0.18092998]
[1756194610166,0.17628117,110550.0,110540.0,0.18092998]
[1756194610402,0.77777867,110550.0,110540.0,0.18092998]
[1756194610607,0.00847077,110550.0,110540.0,0.272392]
[1756194610816,0.94127475,110560.0,110550.0,0.18091361]
[1756194611023,0.94974749,110560.0,110550.0,0.18091361]
[1756194611232,0.00847274,110560.0,110550.0,0.17891361]
[1756194611454,0.18936999,110560.0,110550.0,0.17891361]
[1756194611680,0.78239475,110560.0,110550.0,0.18397361]
[1756194612320,0.79086947,110560.0,110550.0,0.18397361]
[1756194612543,0.60997222,110560.0,110550.0,0.18397361]
[1756194612773,0.79086947,110560.0,110550.0,0.18397361]
[1756194613219,0.18091361,110550.0,110540.0,0.275322]
[1756194613438,0.6014975,110550.0,110540.0,0.436332]
[1756194614494,0.7603775,110550.0,110540.0,0.277452]
[1756194614715,0.7613775,110550.0,110540.0,0.436332]
[1756194615359,0.15988,110550.0,110540.0,0.436332]
[1756194615589,0.001,110550.0,110540.0,0.436332]
[1756194617465,0.18191361,110550.0,110540.0,0.436332]
[1756194617678,0.001,110550.0,110540.0,0.436332]
[1756194617896,0.6024975,110550.0,110540.0,0.436332]
[1756194618628,0.001,110550.0,110540.0,0.436332]
[1756194622037,0.78341111,110550.0,110540.0,0.277452]
[1756194622249,0.78341111,110550.0,110540.0,0.436292]
[1756194622416,0.001,110550.0,110540.0,0.436292]
[1756194623885,0.001,110550.0,110540.0,1.0377895]
[1756194625522,0.18088138,110570.0,110560.0,0.18089725]
[1756194625741,0.37597362,110580.0,110560.0,0.34182725]
[1756194625933,0.18088088,110570.0,110560.0,0.34182725]
[1756194626287,0.18088088,110570.0,110560.0,0.34482725]
[1756194626494,0.37597362,110580.0,110560.0,0.34482725]
[1756194626735,0.39369014,110580.0,110560.0,0.43328927]
[1756194626946,0.18088088,110570.0,110560.0,0.27448927]
[1756194627077,0.18088088,110570.0,110560.0,0.25539202]
[1756194627294,0.18088088,110570.0,110560.0,0.43628927]
[1756194627498,0.18994211,110560.0,110530.0,0.29032652]
[1756194627709,0.18092998,110540.0,110530.0,0.27540836]
[1756194627908,0.18092998,110540.0,110530.0,0.43633836]
[1756194628114,0.78242748,110540.0,110530.0,0.25326202]
[1756194628386,0.78242748,110540.0,110530.0,0.09446202]
[1756194628557,0.78242748,110540.0,110510.0,0.25958747]
[1756194628558,0.18096272,110520.0,110510.0,0.003]
[1756194628749,0.78246022,110520.0,110510.0,0.09446202]
[1756194628902,0.18097909,110510.0,110500.0,0.18399547]
[1756194629109,0.18097909,110510.0,110500.0,0.25334831]
[1756194629110,0.78247659,110510.0,110500.0,0.25334831]
[1756194629332,0.18097909,110510.0,110500.0,0.25334831]
[1756194629530,0.18097909,110510.0,110500.0,0.25547831]
[1756194629736,0.78247659,110510.0,110500.0,8.629e-05]
[1756194630811,0.18097909,110510.0,110500.0,0.00108629]
[1756194631013,0.79166129,110510.0,110500.0,0.00108629]
[1756194631415,0.77755106,110510.0,110500.0,0.00108629]
[1756194632276,0.77755106,110510.0,110500.0,0.00208629]
[1756194633354,0.19016379,110510.0,110500.0,0.00208629]
[1756194633559,0.93635106,110510.0,110500.0,0.00208629]
[1756194634402,0.96356006,110510.0,110500.0,0.00208629]
[1756194637442,0.72782275,110510.0,110500.0,0.00208629]
[1756194637652,0.90880184,110510.0,110500.0,0.00208629]
[1756194638278,0.91791588,110510.0,110500.0,0.00108629]
[1756194638484,0.91791588,110510.0,110500.0,0.00408629]
[1756194639227,0.91791588,110510.0,110500.0,0.00308629]
[1756194640382,0.91791588,110510.0,110500.0,0.00521629]
[1756194640646,0.91791588,110510.0,110500.0,8.629e-05]
[1756194641164,0.37610213,110510.0,110500.0,0.00521629]
[1756194641372,0.36698809,110510.0,110500.0,0.18621176]
[1756194641581,0.20818809,110510.0,110500.0,0.18621176]
[1756194641795,0.1588,110520.0,110510.0,0.18096775]
[1756194642034,0.38501469,110530.0,110520.0,0.18096272]
[1756194642248,0.38501469,110530.0,110520.0,0.18609272]
[1756194642249,0.027206,110530.0,110520.0,0.18609272]
[1756194642460,0.25953647,110540.0,110530.0,0.18094634]
[1756194642461,0.23766753,110540.0,110530.0,0.18094634]
[1756194642680,0.03563674,110540.0,110530.0,0.18607634]
[1756194642887,0.1588,110540.0,110530.0,0.18607634]
[1756194643100,0.18997256,110550.0,110540.0,0.17992998]
[1756194643315,0.42070038,110550.0,110540.0,0.18405998]
[1756194643516,0.18092998,110540.0,110520.0,0.19301085]
[1756194643911,0.18092998,110540.0,110530.0,0.18394634]
[1756194644114,0.18392998,110540.0,110530.0,0.18607634]
[1756194644256,0.003,110540.0,110530.0,0.18607634]
[1756194644505,0.01143416,110540.0,110530.0,0.18607634]
[1756194644912,0.01143416,110540.0,110530.0,0.86492563]
[1756194645370,0.00843416,110540.0,110530.0,0.86492563]
[1756194646386,0.00843416,110540.0,110530.0,0.86692563]
[1756194646804,0.00843416,110540.0,110530.0,0.90832329]
[1756194646994,0.00843416,110540.0,110530.0,0.90632329]
[1756194647404,0.00843416,110540.0,110530.0,0.97592329]
[1756194648292,0.00843416,110540.0,110530.0,1.26207231]
[1756194648513,0.00843416,110540.0,110530.0,0.99437231]
[1756194648702,0.00843416,110540.0,110530.0,1.02156331]
[1756194648940,0.00843416,110540.0,110530.0,1.02256331]
[1756194649134,0.00843416,110540.0,110530.0,1.18136331]
[1756194649329,0.00843416,110540.0,110530.0,1.18436331]
[1756194649574,0.00843416,110540.0,110530.0,1.18236331]
[1756194649796,0.00843416,110540.0,110530.0,1.58436331]
[1756194650220,0.00843416,110540.0,110530.0,1.57936331]
[1756194650432,0.00843416,110540.0,110530.0,1.58532331]
[1756194651339,0.00843416,110540.0,110530.0,0.59793604]
[1756194651552,0.00843416,110540.0,110530.0,1.18932331]
[1756194651767,0.00843416,110540.0,110530.0,0.60193604]
[1756194651985,0.00843416,110540.0,110530.0,1.18932331]
[1756194652804,0.00843416,110540.0,110530.0,0.42572702]
[1756194653019,0.00843416,110540.0,110530.0,0.55729602]
[1756194653254,0.00843416,110540.0,110530.0,1.14468329]
[1756194659387,0.00843416,110540.0,110530.0,1.16213231]
[1756194659583,0.00843416,110540.0,110530.0,0.57474504]
[1756194659803,0.00843416,110540.0,110530.0,1.03056531]
[1756194660145,0.00843416,110540.0,110530.0,1.18928531]
[1756194660544,0.00843416,110540.0,110530.0,0.39853602]
[1756194660774,0.00843416,110540.0,110530.0,0.55725602]
[1756194660968,0.00843416,110540.0,110530.0,1.14464329]
[1756194661354,0.00843416,110540.0,110530.0,1.15796695]
[1756194661687,0.00843416,110540.0,110530.0,1.14796695]
[1756194661896,0.00843416,110540.0,110530.0,1.15096695]
[1756194662090,0.00843416,110540.0,110530.0,1.15596695]
[1756194663430,0.00843416,110540.0,110530.0,0.99724695]
[1756194663645,0.18936414,110540.0,110530.0,0.16906202]
[1756194663861,0.18936414,110540.0,110530.0,0.50872836]
[1756194664711,0.00843416,110540.0,110530.0,0.50872836]
[1756194664961,0.00843416,110540.0,110530.0,1.11464929]
[1756194665454,0.00843416,110540.0,110530.0,0.51093836]
[1756194665677,0.77677016,110560.0,110530.0,0.35012836]
[1756194665678,0.73927664,110560.0,110530.0,0.35012836]
[1756194665902,0.76775648,110540.0,110530.0,0.15872]
[1756194666144,0.18092998,110540.0,110530.0,0.34166634]
[1756194667039,0.18995993,110550.0,110530.0,0.34787634]
[1756194667256,0.18092998,110540.0,110530.0,0.34266634]
[1756194667886,0.18995993,110550.0,110530.0,0.34166634]
[1756194668093,0.18092998,110540.0,110530.0,0.34478634]
[1756194668313,0.18092998,110540.0,110530.0,0.34166634]
[1756194668506,0.18092998,110540.0,110530.0,0.33966634]
[1756194668865,0.18092998,110540.0,110530.0,0.34378634]
[1756194669281,0.18995993,110550.0,110540.0,0.18092998]
[1756194669743,0.18995993,110550.0,110540.0,0.18404998]
[1756194669744,0.18091361,110550.0,110540.0,0.18404998]
[1756194671099,0.18091361,110550.0,110540.0,0.18259758]
[1756194672001,0.18091361,110550.0,110540.0,0.18359758]
[1756194672647,0.18091361,110550.0,110540.0,0.18047758]
[1756194673116,0.18091361,110550.0,110540.0,0.18359758]
[1756194674195,0.20042567,110550.0,110540.0,0.18359758]
[1756194674404,0.01951206,110550.0,110540.0,0.18568758]
[1756194674617,0.18091361,110550.0,110540.0,0.18568758]
[1756194675272,0.18091361,110550.0,110540.0,0.00412]
[1756194675718,0.18091361,110550.0,110540.0,0.15972]
[1756194675719,0.200427,110550.0,110540.0,0.15972]
[1756194677232,0.200427,110550.0,110540.0,0.001]
[1756194677454,0.7872535,110550.0,110540.0,0.001]
[1756194677672,0.9459735,110550.0,110540.0,0.001]
[1756194677898,0.20889615,110550.0,110540.0,0.001]
[1756194678134,0.20889615,110550.0,110540.0,0.00412]
[1756194678354,0.20889615,110550.0,110540.0,0.00621]
[1756194678828,0.20889615,110550.0,110540.0,0.18713998]
[1756194679061,0.02798254,110550.0,110540.0,0.18713998]
[1756194679524,0.20889615,110550.0,110540.0,0.18713998]
[1756194679772,0.20889615,110550.0,110540.0,0.00621]
[1756194680006,0.20889615,110550.0,110540.0,0.00412]
[1756194680717,0.20889615,110550.0,110540.0,0.18504998]
[1756194680937,0.20889615,110550.0,110540.0,0.00412]
[1756194681365,0.02798254,110550.0,110540.0,0.18713998]
[1756194681582,0.02798467,110550.0,110540.0,0.8654285]
[1756194682036,0.00847128,110550.0,110540.0,0.278602]
[1756194682465,0.00847189,110550.0,110540.0,0.278602]
[1756194686281,0.1893855,110550.0,110540.0,0.278602]
[1756194686482,0.1893855,110550.0,110540.0,0.15968]
[1756194686767,0.20891375,110550.0,110540.0,0.34597998]
[1756194687401,0.20891375,110550.0,110540.0,0.34697998]
[1756194687599,0.20891375,110550.0,110540.0,0.34482998]
[1756194687763,0.20891375,110550.0,110540.0,0.16068]
[1756194687938,0.20891853,110550.0,110540.0,0.16068]
[1756194688151,0.20891853,110550.0,110540.0,0.15968]
[1756194688444,0.20891853,110550.0,110540.0,0.1629]
[1756194688649,0.20891853,110550.0,110540.0,0.34482998]
[1756194688889,0.20891853,110550.0,110540.0,0.1639]
[1756194689094,0.20891853,110550.0,110540.0,0.34697998]
[1756194689307,0.20891853,110550.0,110540.0,0.1639]
[1756194689547,0.20891853,110550.0,110540.0,0.16068]
[1756194689753,0.80981918,110550.0,110540.0,0.16068]
[1756194689980,0.80981918,110550.0,110540.0,0.1639]
[1756194690401,0.20891853,110550.0,110540.0,0.1639]
[1756194691029,0.80981918,110550.0,110540.0,0.1639]
[1756194691249,0.80134251,110550.0,110540.0,0.1639]
[1756194691419,0.20892183,110550.0,110540.0,0.1639]
[1756194691568,0.36760183,110550.0,110540.0,0.00522]
[1756194693253,0.36760183,110550.0,110540.0,0.00737]
[1756194693668,0.20892183,110550.0,110540.0,0.18829998]
[1756194693887,0.20892183,110550.0,110540.0,0.00737]
[1756194694297,0.20892183,110550.0,110540.0,0.18829998]
[1756194695148,0.20892183,110550.0,110540.0,0.00737]
[1756194695719,0.80982248,110550.0,110540.0,0.16068]
[1756194695927,0.80982248,110550.0,110540.0,0.002]
[1756194696115,0.79029423,110550.0,110540.0,0.002]
[1756194696539,0.79029423,110550.0,110540.0,0.00522]
[1756194696759,0.18939358,110550.0,110540.0,0.18829998]
[1756194696969,0.18939358,110550.0,110540.0,0.00522]
[1756194697327,0.18939358,110550.0,110540.0,0.002]
[1756194697529,0.18940065,110550.0,110540.0,0.002]
[1756194697973,0.7903013,110550.0,110540.0,0.002]
[1756194700752,0.18091361,110550.0,110540.0,0.00737]
[1756194700966,0.18940214,110550.0,110540.0,0.00737]
[1756194703267,0.79030279,110550.0,110540.0,0.002]
[1756194705219,1.13030279,110550.0,110540.0,0.002]
[1756194706854,1.15750379,110550.0,110540.0,0.002]
[1756194707064,1.1575029,110550.0,110540.0,0.002]
[1756194707674,1.1575029,110550.0,110540.0,0.00737]
[1756194708081,1.3161429,110550.0,110540.0,0.00737]
[1756194709345,0.71524225,110550.0,110540.0,0.00737]
[1756194709503,1.3161429,110550.0,110540.0,0.00737]
[1756194710149,0.71524225,110550.0,110540.0,0.00737]
[1756194710390,1.31614191,110550.0,110540.0,0.00737]
[1756194711457,0.71524126,110550.0,110540.0,0.18829998]
[1756194711674,0.67955361,110550.0,110540.0,0.00737]
[1756194711840,0.68803942,110550.0,110540.0,0.00737]
[1756194712246,1.28894007,110550.0,110540.0,0.002]
[1756194713039,1.31614107,110550.0,110540.0,0.002]
[1756194716177,1.40760309,110550.0,110540.0,0.002]
[1756194716391,1.44413676,110550.0,110540.0,0.002]
[1756194716612,1.45050296,110550.0,110540.0,0.002]
[1756194716821,1.44413676,110550.0,110540.0,0.002]
[1756194717427,1.45050238,110550.0,110540.0,0.001]
[1756194717627,1.54194767,110550.0,110540.0,0.001]
[1756194718031,1.54194758,110550.0,110540.0,0.001]
[1756194718789,0.52092998,110540.0,110530.0,0.00318]
[1756194718991,1.28895644,110540.0,110530.0,0.00318]
[1756194719434,0.71525979,110540.0,110530.0,0.00529]
[1756194719841,0.5566187,110540.0,110530.0,0.00529]
[1756194720286,0.5566187,110540.0,110530.0,0.18623634]
[1756194720887,0.20813398,110540.0,110530.0,0.94577699]
[1756194721616,0.20813398,110540.0,110530.0,0.34487634]
[1756194721817,0.20813398,110540.0,110530.0,0.00529]
[1756194722589,0.96767463,110540.0,110530.0,0.00318]
[1756194722767,0.96767463,110540.0,110530.0,0.00529]
[1756194722965,0.96767463,110540.0,110530.0,0.00318]
[1756194723981,0.97690666,110540.0,110530.0,0.00318]
[1756194724187,0.97690666,110540.0,110530.0,0.00529]
[1756194724705,0.97690666,110540.0,110530.0,0.00318]
[1756194724919,0.18096272,110520.0,110510.0,0.40917666]
[1756194725146,0.18096272,110520.0,110510.0,0.34419497]
[1756194725388,0.18096272,110520.0,110510.0,0.5028374]
[1756194725590,0.18096272,110520.0,110510.0,0.09683831]
[1756194726133,0.18096272,110520.0,110510.0,0.09983831]
[1756194726544,0.18096272,110520.0,110510.0,0.2808174]
[1756194727165,0.18096272,110520.0,110510.0,0.2828174]
[1756194727575,0.20816599,110530.0,110520.0,0.18096272]
[1756194727752,0.18096272,110520.0,110510.0,0.2807074]
[1756194728071,0.18096272,110520.0,110510.0,0.2828174]
[1756194728356,0.20816599,110530.0,110520.0,0.18096272]
[1756194728583,0.20816599,110530.0,110520.0,0.18625272]
[1756194728759,0.20816599,110530.0,110520.0,0.34489272]
[1756194729479,0.20816599,110530.0,110520.0,0.34589272]
[1756194729881,0.3578485,110540.0,110520.0,0.25639202]
[1756194730040,0.18094634,110530.0,110520.0,0.25321202]
[1756194730246,0.18094634,110530.0,110520.0,0.43417474]
[1756194730455,0.18094634,110530.0,110520.0,0.09457202]
[1756194730666,0.18094634,110530.0,110520.0,0.25428202]
[1756194730891,0.78184699,110530.0,110520.0,0.002]
[1756194731304,0.78184699,110530.0,110520.0,0.00518]
[1756194731591,0.80905199,110530.0,110520.0,0.00518]
[1756194731803,0.20815134,110530.0,110520.0,0.00729]
[1756194731949,0.20815134,110530.0,110520.0,0.00518]
[1756194732149,0.80905199,110530.0,110520.0,0.00729]
[1756194732782,0.80905199,110530.0,110520.0,0.00518]
[1756194733468,0.20815134,110530.0,110520.0,0.00518]
[1756194734297,0.80905199,110530.0,110520.0,0.00518]
[1756194734485,0.78184699,110530.0,110520.0,0.00729]
[1756194735324,0.18094634,110530.0,110520.0,0.00729]
[1756194735881,0.18094634,110530.0,110520.0,0.18825272]
[1756194736594,0.18094634,110530.0,110520.0,0.00729]
[1756194737161,0.18094634,110530.0,110520.0,0.18825272]
[1756194737932,0.18094634,110530.0,110520.0,0.00729]
[1756194742369,0.18094634,110530.0,110520.0,0.18825272]
[1756194742573,0.18094634,110530.0,110520.0,0.00729]
[1756194743306,0.78184699,110530.0,110520.0,0.002]
[1756194743718,0.78184699,110530.0,110520.0,0.00518]
[1756194743897,0.78184699,110530.0,110520.0,0.18825272]
[1756194744101,0.18094634,110530.0,110520.0,0.18825272]
[1756194745363,0.18094634,110530.0,110520.0,0.34685272]
[1756194746080,0.18094634,110530.0,110520.0,0.16589]
[1756194746351,0.18094634,110530.0,110520.0,0.34685272]
[1756194747504,0.18094634,110530.0,110520.0,0.16589]
[1756194748076,0.18094634,110530.0,110520.0,0.34685272]
[1756194752570,0.78184699,110530.0,110520.0,0.16378]
[1756194753023,0.78184699,110530.0,110520.0,0.00518]
[1756194753723,0.78184699,110530.0,110520.0,0.00729]
[1756194754370,0.78184699,110530.0,110520.0,0.00518]
[1756194754585,0.78184699,110530.0,110520.0,0.002]
[1756194754776,1.22178508,110530.0,110520.0,0.002]
[1756194754987,1.24899308,110530.0,110520.0,0.002]
[1756194755209,1.15754779,110530.0,110520.0,0.002]
[1756194755585,1.17453428,110530.0,110520.0,0.001]
[1756194755766,0.18096272,110520.0,110510.0,8.629e-05]
[1756194755964,0.94042337,110520.0,110510.0,8.629e-05]
[1756194756364,0.96763037,110520.0,110510.0,8.629e-05]
[1756194757030,0.97612124,110520.0,110510.0,0.00108629]
[1756194757446,1.47308167,110520.0,110510.0,0.00208629]
[1756194757689,1.49854713,110520.0,110510.0,0.00208629]
[1756194758496,1.5180984,110520.0,110510.0,0.00208629]
[1756194758695,0.68464847,110520.0,110510.0,0.00208629]
[1756194758842,1.28554912,110520.0,110510.0,8.629e-05]
[1756194759220,1.44510912,110520.0,110510.0,8.629e-05]
[1756194759459,2.04600977,110520.0,110510.0,8.629e-05]
[1756194759907,0.84420847,110520.0,110510.0,8.629e-05]
[1756194760118,1.44510912,110520.0,110510.0,8.629e-05]
[1756194760765,1.53655441,110520.0,110510.0,8.629e-05]
[1756194760989,0.68564847,110520.0,110510.0,8.629e-05]
[1756194761214,1.42555785,110520.0,110510.0,0.00309629]
[1756194762853,0.8246572,110520.0,110510.0,0.00309629]
[1756194763075,1.42555785,110520.0,110510.0,0.00309629]
[1756194763300,1.26697299,110520.0,110510.0,0.00309629]
[1756194763518,1.42553001,110520.0,110510.0,0.00309629]
[1756194763764,1.17550799,110520.0,110510.0,0.00520629]
[1756194763990,0.73316734,110520.0,110510.0,0.00520629]
[1756194764219,0.73316734,110520.0,110510.0,0.18618538]
[1756194764220,0.36772972,110520.0,110510.0,0.18618538]
[1756194764515,0.20916972,110520.0,110510.0,0.18618538]
[1756194764716,0.20916972,110520.0,110510.0,0.00520629]
[1756194765619,0.20816972,110520.0,110510.0,0.00520629]
[1756194766017,0.20816972,110520.0,110510.0,0.18618538]
[1756194766635,0.027207,110520.0,110510.0,0.78708603]
[1756194766845,0.18094634,110530.0,110520.0,0.18096272]
[1756194767067,0.20815034,110530.0,110520.0,0.18608272]
[1756194767273,0.18094634,110530.0,110520.0,0.18608272]
[1756194768907,0.3849725,110540.0,110520.0,0.18608272]
[1756194769114,0.3849725,110540.0,110530.0,0.00301]
[1756194769273,0.3849725,110540.0,110530.0,0.18606634]
[1756194769274,0.21718047,110540.0,110530.0,0.18606634]
[1756194769484,0.20813398,110540.0,110530.0,0.18606634]
[1756194769719,0.20813398,110540.0,110530.0,0.00512]
[1756194770122,0.21722305,110540.0,110530.0,0.00512]
[1756194770328,0.8181237,110540.0,110530.0,0.00512]
[1756194770548,0.8191237,110540.0,110530.0,0.00512]
[1756194771817,0.81003463,110540.0,110530.0,0.00512]
[1756194771976,0.3058608,110550.0,110530.0,0.00512]
[1756194772200,0.18092998,110540.0,110530.0,0.00512]
[1756194774036,0.18192998,110540.0,110530.0,0.00512]
[1756194774237,0.19102368,110540.0,110530.0,0.00512]
[1756194780227,0.19102368,110540.0,110530.0,0.00301]
[1756194780430,0.79192433,110540.0,110530.0,0.0051]
[1756194780581,0.19102368,110540.0,110530.0,0.0051]
[1756194781462,0.18192998,110540.0,110530.0,0.0051]
[1756194781815,0.18192998,110540.0,110530.0,0.18604634]
[1756194782824,0.18192998,110540.0,110530.0,0.0051]
[1756194783542,0.18094634,110530.0,110520.0,0.0032]
[1756194783764,0.78184699,110530.0,110520.0,0.0032]
[1756194784213,0.18096272,110520.0,110510.0,0.16176629]